[Event "Lliga Catalana DH 2023"]
[Site "Catalonia"]
[Date "2023.02.04"]
[Round "3.5"]
[White "Triadu Cassa, Jordi"]
[Black "Roca Planas, Edgar"]
[Result "0-1"]
[ECO "B19"]
[WhiteElo "2195"]
[BlackElo "2153"]
[Annotator "TA"]
[PlyCount "65"]
[EventDate "2023.01.24"]
[EventType "team-tourn"]
[EventCountry "ESP"]
[SourceTitle "playchess.com"]
[Source "ChessBase"]
[SourceQuality "1"]
[TimeControl "40/5400+30:1800+30"]

{[%evp 23,65,0,18,0,0,0,27,0,13,-29,-16,-25,-24,-24,-33,-20,-8,-10,0,0,42,0,0,0,86,-36,-9,-53,-44,-51,-41,-50,0,0,0,0,111,-389,-370,-886,-763,-975,-964,-810]} 1. e4 {[%emt 0:01:08]} c6 {[%emt 0:00:11]} 2. d4 {[%emt 0:00:09]} d5 {[%emt 0:00:07]} 3. Nc3 {[%emt 0:00:18]} dxe4 {[%emt 0:00:41]} 4. Nxe4 {[%emt 0:00:08]} Bf5 {[%emt 0:00:56]} 5. Ng3 {[%emt 0:00:07]} Bg6 {[%emt 0:00:04]} 6. h4 {[%emt 0:00:14]} h6 {[%emt 0:00:05]} 7. Nf3 {[%emt 0:00:07]} e6 {[%emt 0:00:31]} 8. h5 {[%emt 0:00:06]} Bh7 {[%emt 0:00:06]} 9. Bd3 {[%emt 0:00:02]} Bxd3 {[%emt 0:00:07]} 10. Qxd3 {[%emt 0:00:06]} Nf6 {[%emt 0:00:06]} 11. Bd2 {[%emt 0:00:17]} Be7 {[%emt 0:00:19]} 12. O-O-O {[%emt 0:01:12]} O-O {[%emt 0:00:11]} 13. Kb1 {[%emt 0:00:41] B19: Classical Caro-Kann: 4...Bf5 main line.} c5 {[%emt 0:01:22]} 14. Ne4 {[%emt 0:08:20]} Nbd7 {[%emt 0:01:38][%cal Bb8d7,Bd7f6,Bf6d5][%mdl 32]} 15. Nxf6+ {[%emt 0:10:43] White has an edge.} Nxf6 {[%emt 0:01:09]} 16. Be3 {[%emt 0:00:25]} (16. Rhg1 $5 {[%cal Rg2g4]}) 16... Rc8 {[%emt 0:04:15] [#] White must now prevent ...c4.} 17. Qe2 $146 {[%emt 0:05:10]} ({Predecessor:} 17. Ne5 Qc7 18. c3 Nd5 19. Ka1 c4 20. Qe2 b5 21. Rh3 b4 22. Rg3 Kh7 23. Bd2 bxc3 24. Bxc3 {0-1 Beerdsen,T (2484)-Abdusattorov,N (2646) Castelldefels Llobregat op 2nd 2021 (7)}) 17... Qb6 {[%emt 0:15:15]} 18. Ka1 {[%emt 0:11:38]} Rfd8 {[%emt 0:02:09]} 19. c3 {[%emt 0:01:54]} Qa5 {[%emt 0:14:47]} 20. dxc5 {[%emt 0:16:36]} Nd5 {[%emt 0:08:05]} (20... Qc7 {simplifies} 21. Bd4 Bxc5 22. Bxf6 gxf6 23. Nd2 Bb6) 21. Bd4 {[%emt 0:05:05]} b6 {[%emt 0:02:53][%cal Bb7b6,Bb6b5,Bb5b4][%mdl 32] [#]} 22. c6 $1 {[%emt 0:01:20] Strongly threatening g4.} b5 {[%emt 0:04:02]} 23. Ne5 {[%emt 0:12:45]} Bf6 {[%emt 0:17:46]} (23... b4 $1 $11) 24. g4 {[%emt 0:11:36]} (24. Rhe1 $16 {[%cal Oe5f7] Nxf7! would be deadly.} Qc7 25. Qxb5) 24... b4 $1 $15 {[%emt 0:03:24][%cal Rb4c3]} 25. Nc4 {[%emt 0:01:57]} (25. g5 {is interesting.} Bxg5 26. Nf3 Bf6 27. Bxf6 Nxf6 28. cxb4 Qxb4 29. Rxd8+ Rxd8 30. a3) 25... Qa6 {[%emt 0:04:12]} 26. Bxf6 {[%emt 0:00:01]} gxf6 $40 {[%emt 0:00:28][%mdl 128] Black has some attack.} 27. cxb4 {[%emt 0:05:47]} Rxc6 {[%emt 0:00:44]} ({Black should try} 27... Qxc6 $15 28. Ne3 Nxb4) 28. b3 $11 {[%emt 0:00:43]} Rb8 {[%emt 0:01:26]} 29. Rd2 {[%emt 0:03:51][%cal Of2f4]} Rxb4 {[%emt 0:02:38] [#]} (29... Qc8 $11) 30. Rc1 $2 {[%emt 0:01:05][%mdl 8192] Now White is beyond hope.} (30. Rxd5 $1 $16 exd5 31. Qe8+ Kg7 32. Ne3) 30... Rxb3 $19 {[%emt 0:01:54] Threatens to win with ...Rc3.} 31. Rb2 $2 {[%emt 0:01:55]} (31. Rdc2) 31... Rc3 {[%emt 0:01:31]} 32. Rxc3 {[%emt 0:00:32]} Nxc3 {[%emt 0:00:05]} 33. Qd2 {[%emt 0:00:32] Weighted Error Value: White=0.78/Black=0.28 (precise)} 0-1

[Event "Lliga Catalana DH 2023"]
[Site "Catalonia"]
[Date "2023.02.04"]
[Round "3.6"]
[White "Baches Garcia, Guillermo"]
[Black "Alonso Moyano, Jonathan"]
[Result "1/2-1/2"]
[WhiteElo "2328"]
[BlackElo "2339"]
[Annotator "TA"]
[PlyCount "19"]
[EventDate "2023.01.24"]
[EventType "team-tourn"]
[EventCountry "ESP"]
[SourceTitle "playchess.com"]
[Source "ChessBase"]
[SourceQuality "1"]
[TimeControl "40/5400+30:1800+30"]

{[%evp 10,19,28,16,19,16,23,19,26,24,23,0]} 1. e4 c5 2. Nf3 a6 3. c4 Nc6 4. d4 cxd4 5. Nxd4 e5 6. Nc2 Bc5 {6...Bc5 is better than 6...Nf6. B28: Sicilian: 2 Nf3 a6 (O'Kelly Variation).} 7. Nc3 d6 8. Be3 Nge7 {[#]} 9. Qd2 $146 ({Predecessor:} 9. Be2 O-O 10. O-O Be6 11. b3 Rc8 12. Na4 Bxe3 13. Nxe3 Nd4 14. Bd3 b5 15. Nc3 {½-½ Uzumcu,A (2249)-Sadikhov,U (2485) TUR-chT 1st League 2022 (2.6)}) 9... O-O 10. O-O-O {Not much happened in this game.   Weighted Error Value: White=0.04 (flawless) /Black=0.04 (flawless)} 1/2-1/2

[Event "Lliga Catalana DH 2023"]
[Site "Catalonia"]
[Date "2023.02.04"]
[Round "3.6"]
[White "Delisau Gil, Oriol"]
[Black "Aymerich Verdaguer, Eduard"]
[Result "1-0"]
[ECO "A26"]
[WhiteElo "2223"]
[BlackElo "2208"]
[Annotator "TA"]
[PlyCount "105"]
[EventDate "2023.01.24"]
[EventType "team-tourn"]
[EventCountry "ESP"]
[SourceTitle "playchess.com"]
[Source "ChessBase"]
[SourceQuality "1"]
[TimeControl "40/5400+30:1800+30"]

{[%evp 22,105,40,27,28,28,21,29,22,0,0,0,6,6,9,8,4,16,8,0,0,0,198,189,193,196,185,192,198,194,187,175,185,185,185,185,185,176,177,165,160,83,65,21,21,16,21,-440,-427,-427,-425,-825,-825,-785,-744,-1619,-1504,-29961,0,0,29968,29967,29974,29973,6025,7960,29990,29982,29981,29982,29983,29984,29988,29978,29987,29978,29984,29985,29987,29986,29986,29987,29987,29988,29994,29995]} 1. Nf3 {[%emt 0:00:08]} Nf6 {[%emt 0:00:42]} 2. c4 {[%emt 0:00:12]} g6 {[%emt 0:00:10]} 3. Nc3 {[%emt 0:00:13]} Bg7 {[%emt 0:00:09]} 4. g3 {[%emt 0:00:41]} d6 {[%emt 0:00:09]} 5. Bg2 {[%emt 0:00:08]} O-O {[%emt 0:00:10]} 6. O-O {[%emt 0:00:11]} e5 {[%emt 0:00:25]} 7. Rb1 {[%emt 0:01:06]} a5 {[%emt 0:00:41]} 8. a3 {[%emt 0:00:23][%cal Ba2a3,Ba3b4,Bb4b5][%mdl 32]} Nc6 {[%emt 0:04:09]} 9. b4 {[%emt 0:03:18]} axb4 {[%emt 0:01:38]} 10. axb4 {[%emt 0:00:10]} Bf5 {[%emt 0:01:17]} 11. d3 {[%emt 0:00:49]} Qd7 {[%emt 0:01:05]} 12. b5 {[%emt 0:02:49]} Nd4 {[%emt 0:06:20] A26: English Opening vs King's Indian with ...Nc6 and d3.} 13. Be3 {[%emt 0:32:04]} (13. Nh4 {looks sharper.} Bh3 14. Bxb7 Bxf1 15. Qxf1 Ra5 16. Bg2) 13... Nxf3+ {[%emt 0:14:34]} 14. Bxf3 {[%emt 0:00:53]} c6 {[%emt 0:00:06] White has an edge.} 15. bxc6 {[%emt 0:07:46]} bxc6 {[%emt 0:00:12]} 16. Rb6 {[%emt 0:00:35]} Rfc8 {[%emt 0:03:49]} 17. Qb3 {[%emt 0:01:50] [#]} Be6 $146 {[%emt 0:10:40]} ({Predecessor:} 17... Qe8 18. Rb1 e4 19. dxe4 Nxe4 20. Nxe4 Bxe4 21. Bxe4 Qxe4 22. Qd3 {½-½ Stean,M-Vaganian,R Moscow 1975}) 18. Rb7 {[%emt 0:11:45]} Rc7 {[%emt 0:03:19]} 19. Rxc7 {[%emt 0:00:35]} Qxc7 {[%emt 0:00:07]} 20. Rb1 {[%emt 0:00:09]} h6 {[%emt 0:09:34]} 21. h4 {[%emt 0:15:21]} Nd7 $2 {[%emt 0:11:00]} (21... Qc8 $11 {and Black is okay.}) 22. Nb5 $18 {[%emt 0:17:33]} cxb5 {[%emt 0:09:47]} 23. Bxa8 {[%emt 0:00:10]} bxc4 {[%emt 0:00:05]} 24. dxc4 {[%emt 0:00:44]} Qxc4 {[%emt 0:00:22]} 25. Qxc4 {[%emt 0:01:21]} Bxc4 {[%emt 0:00:02]} 26. Rb7 {[%emt 0:01:07]} Nf6 {[%emt 0:02:13]} 27. Rb8+ {[%emt 0:00:10]} Kh7 {[%emt 0:00:08]} 28. Kf1 {[%emt 0:01:07]} d5 {[%emt 0:01:16]} 29. Ba7 {[%emt 0:00:55]} Ne4 {[%emt 0:01:54]} 30. Rd8 {[%emt 0:00:36]} Nc3 {[%emt 0:00:32]} 31. Kg2 {[%emt 0:00:14]} (31. Ke1 $142) 31... d4 {[%emt 0:05:26]} 32. e3 {[%emt 0:00:35][%cal Re3d4]} Bf6 $1 {[%emt 0:00:55] Prevents exd4} 33. Rd6 {[%emt 0:00:30]} d3 $1 {[%emt 0:06:45]} 34. e4 $2 {[%emt 0:00:29][%mdl 8192]} (34. Rxf6 d2 35. Bf3 Bd5 $17) (34. Rd7 $11 {and White has nothing to worry.}) 34... Be7 $1 $19 {[%emt 0:00:15]} 35. Rd7 {[%emt 0:00:07] [#] aiming for Bc6.} Bb5 {[%emt 0:00:53] Against Bc6} 36. Rxe7 {[%emt 0:01:07]} (36. Rxd3 $142 Bxd3 37. Kf3) 36... d2 {[%emt 0:00:12]} 37. Rxf7+ {[%emt 0:00:14]} Kg8 {[%emt 0:00:08]} 38. Rc7 {[%emt 0:00:43]} d1=Q {[%emt 0:04:25] ( -> ...Bf1+)} (38... d1=B 39. Rxc3 Bg4 40. Bd5+ Kf8 41. f3 $18) 39. Rxc3 {[%emt 0:00:08] [#]} Qf1+ $2 {[%emt 0:00:19]} (39... Bf1+ $1 {mates} 40. Kh2 Qg4 41. Bd5+ Kg7 42. Be6 Qxe6 43. g4 Qxg4 44. Rg3 Qxh4+ 45. Kg1 Bb5 46. Re3 Qg4+ 47. Kh2 Bf1 48. Rg3 Qh4+ 49. Kg1 Bb5 50. Re3 Qg4+ 51. Kh2 Bf1 52. Rg3 Qh4+) 40. Kh2 $11 {[%emt 0:00:06]} Bc4 $2 {[%emt 0:00:49][%mdl 8192] [#]} (40... Bd7 $11 41. Bd5+ Kh8) 41. Rxc4 $1 {[%emt 0:30:17][%mdl 576] Remove Defender} g5 {[%emt 0:30:44]} (41... Kf8 42. Bd5) 42. Bd5+ {[%emt 0:00:14]} Kg7 {[%emt 0:00:11]} 43. Rc7+ {[%emt 0:01:23]} Kg6 {[%emt 0:00:58]} 44. Bf7+ {[%emt 0:00:17] White mates.} Kf6 {[%emt 0:00:07]} 45. h5 {[%emt 0:00:18]} Qe2 {[%emt 0:00:48]} 46. Bg6 {[%emt 0:00:17]} Ke6 {[%emt 0:03:21]} 47. Be3 {[%emt 0:00:25]} Kf6 {[%emt 0:00:10]} 48. Rf7+ {[%emt 0:00:08]} Ke6 {[%emt 0:00:06]} 49. Rh7 {[%emt 0:00:05]} Kf6 {[%emt 0:00:24]} 50. Rxh6 {[%emt 0:00:08]} Kg7 {[%emt 0:00:05]} 51. Rh7+ {[%emt 0:00:07]} (51. Bxg5 Qxf2+ 52. Kh3 Qf1+ 53. Kh4 Qh1+ 54. Kg4 Qd1+ 55. Kf5 Qf3+ 56. Bf4 exf4 57. Rh7+ Kg8 58. gxf4 Qh3+ 59. Kf6 Qc3+ 60. Kf5 (60. e5 Qd4 $11) 60... Qh3+ 61. Kf6 Qc3+ 62. Ke6 (62. e5 Qd4 $11) 62... Qb3+ 63. Kf5 Qh3+ $11) 51... Kg8 {[%emt 0:00:05]} 52. Rf7 {[%emt 0:00:09]} g4 {[%emt 0:00:13]} 53. h6 {[%emt 0:00:13] Weighted Error Value: White=0.81/Black=0.69} 1-0

[Event "Lliga Catalana DH 2023"]
[Site "Catalonia"]
[Date "2023.02.04"]
[Round "3.7"]
[White "Balague Camps, Marc"]
[Black "Castelltort Fernandez, Antonio"]
[Result "1-0"]
[ECO "A92"]
[WhiteElo "2207"]
[BlackElo "2208"]
[Annotator "TA"]
[PlyCount "139"]
[EventDate "2023.01.24"]
[EventType "team-tourn"]
[EventCountry "ESP"]
[SourceTitle "playchess.com"]
[Source "ChessBase"]
[SourceQuality "1"]
[TimeControl "40/5400+30:1800+30"]

{[%evp 10,139,35,31,37,35,41,29,31,13,16,0,18,0,12,6,48,11,17,6,6,0,18,15,15,12,22,0,36,36,35,30,27,30,32,32,31,23,22,-26,-16,-9,39,39,35,0,25,0,33,6,18,0,18,0,0,-6,0,-47,0,0,0,0,0,-49,-58,-49,-37,-61,-42,-120,21,20,26,0,789,44,624,-69,-68,-39,251,241,202,239,566,564,534,300,554,520,520,0,512,0,432,84,62,0,0,0,23,0,140,38,38,39,39,0,0,0,0,0,0,0,0,0,0,0,0,0,0,0,0,0,0,0,29993,29984,29994,29995,29995,29996]} 1. d4 {[%emt 0:00:03]} f5 {[%emt 0:00:15]} 2. c4 {[%emt 0:00:06]} e6 {[%emt 0:00:18]} 3. g3 {[%emt 0:00:06]} Nf6 {[%emt 0:00:17]} 4. Bg2 {[%emt 0:00:06]} Be7 {[%emt 0:00:29]} 5. Nf3 {[%emt 0:00:21]} d5 {[%emt 0:00:38]} 6. O-O {[%emt 0:00:26]} Ne4 {[%emt 0:00:34] is now more promising than 6...0-0. A92: Classical Dutch: Classical Stonewall (with ...Be7): Early deviations.} 7. Ne5 {[%emt 0:07:53]} Nd7 {[%emt 0:04:23]} 8. Qc2 {[%emt 0:06:19]} c6 {[%emt 0:05:28] White has an edge.} 9. Nd2 {[%emt 0:09:25]} Nxe5 {[%emt 0:08:05]} 10. dxe5 {[%emt 0:00:28]} O-O {[%emt 0:01:35]} 11. Nxe4 {[%emt 0:09:31]} fxe4 {[%emt 0:01:07]} 12. Be3 {[%emt 0:06:39] [#]} Kh8 $146 {[%emt 0:15:29]} (12... Qc7 $5 {[%cal Rc7e5]}) ({Predecessor:} 12... Bd7 13. Rad1 b6 14. f3 exf3 15. exf3 Rc8 16. f4 Qc7 17. Qd3 g6 18. cxd5 cxd5 19. Bxd5 {½-½ Giuriato,S (2020)-De Mori,M (1928) Vicenza op 8th 2004 (4)}) 13. f3 {[%emt 0:09:40]} exf3 $1 {[%emt 0:02:46]} 14. Rxf3 {[%emt 0:00:26]} Rxf3 {[%emt 0:02:03]} 15. Bxf3 {[%emt 0:00:18]} Qe8 {[%emt 0:06:13]} 16. Rf1 {[%emt 0:04:23]} Bd7 {[%emt 0:04:04]} 17. Kg2 {[%emt 0:06:07]} b6 {[%emt 0:02:38]} 18. Bg1 {[%emt 0:04:02]} Rc8 {[%emt 0:02:42]} 19. c5 {[%emt 0:06:13]} b5 {[%emt 0:07:00]} 20. Qc3 {[%emt 0:03:05]} a5 {[%emt 0:02:21]} 21. a3 {[%emt 0:06:27]} a4 {[%emt 0:01:09] Black is weak on the dark squares} 22. h4 {[%emt 0:01:24]} Kg8 {[%emt 0:03:14]} 23. Be3 {[%emt 0:06:55]} Qd8 {[%emt 0:01:48]} 24. Bh5 {[%emt 0:00:28]} (24. Bg4 {deserves consideration.}) 24... Be8 $1 $11 {[%emt 0:02:00]} 25. Bg4 {[%emt 0:00:12]} Bd7 {[%emt 0:00:32]} (25... Bf7 $11 {is more appropriate.}) 26. Bd4 $14 {[%emt 0:03:24]} Qc7 {[%emt 0:01:52]} 27. Be3 {[%emt 0:04:33]} Rf8 {[%emt 0:01:13]} 28. Rf3 {[%emt 0:01:07]} Qa7 {[%emt 0:01:11]} 29. Qd4 {[%emt 0:00:38]} Qb8 {[%emt 0:00:39]} 30. Bd2 {[%emt 0:01:07]} Qa7 {[%emt 0:00:18]} 31. Bb4 {[%emt 0:00:10]} Qb8 {[%emt 0:01:08]} 32. Ba5 {[%emt 0:01:47]} Qc8 {[%emt 0:03:52]} 33. Rc3 {[%emt 0:00:31]} (33. Rxf8+ $11 {should be considered.} Qxf8 34. Bb4) 33... Bd8 {[%emt 0:01:22]} (33... Be8 $1 $15) 34. Bb6 {[%emt 0:00:34]} Be7 {[%emt 0:04:14]} 35. e4 {[%emt 0:00:34]} Qe8 {[%emt 0:02:22]} 36. exd5 {[%emt 0:00:27]} (36. h5 $11) 36... exd5 $15 {[%emt 0:01:09] White must now prevent ...h5.} 37. e6 {[%emt 0:01:17]} Bc8 {[%emt 0:00:21]} 38. Re3 {[%emt 0:00:58]} Qg6 {[%emt 0:05:56]} 39. Bc7 {[%emt 0:00:35]} ({White should play} 39. Qd1 $15) 39... Qc2+ {[%emt 0:00:58]} (39... Qb1 40. Bf4) (39... h5 $17 40. Bf3 Rf6) 40. Re2 $1 $11 {[%emt 0:00:05] Active counter play!} Qc1 {[%emt 0:03:18]} 41. Bd6 {[%emt 0:30:21] Really sharp!} (41. Bf4 $5 {[%cal Rf4c1]} Qxc5 42. Qxc5 Bxc5 43. Rc2 $14) 41... Re8 {[%emt 0:31:54][%mdl 8192]} (41... Qf1+ $11 42. Kh2 h5 43. Bxh5 (43. Bxe7 hxg4 44. Rg2 Re8 $17) 43... Bxe6) 42. Rf2 $2 {[%emt 0:01:12]} (42. Bh5 $18 g6 43. Qf2 (43. Bg4 Qc4 $16)) 42... Qh6 $2 {[%emt 0:00:16][%mdl 8192]} (42... Bxd6 $2 43. cxd6 Qe1 44. d7 Bxd7 45. exd7 $18) (42... Qc4 $14 43. Qxc4 bxc4) 43. Bf4 $2 {[%emt 0:00:28]} ({Better is} 43. Bxe7 $18 Rxe7 44. Qe5) 43... Qg6 $15 {[%emt 0:00:24] Repels Rf7} 44. Be5 {[%emt 0:01:00]} Qe4+ $2 {[%emt 0:00:22][%mdl 8192]} (44... Bxe6 $15 {stays ahead.} 45. Bxe6+ Qxe6 46. Bxg7 Bxc5 47. Qxc5 Kxg7) 45. Qxe4 $18 {[%emt 0:00:22]} dxe4 {[%emt 0:00:05]} 46. Rf7 {[%emt 0:00:08]} Bf6 {[%emt 0:00:57]} (46... Bxc5 {is tougher.} 47. Rxg7+ Kf8) 47. Bxf6 {[%emt 0:00:32]} gxf6 {[%emt 0:00:05]} 48. Rxf6 {[%emt 0:00:17][%mdl 4096] Endgame KRB-KRB} Kg7 $2 {[%emt 0:00:11]} (48... Re7 49. Kf2 Kg7) 49. Rf7+ {[%emt 0:00:07]} Kg8 {[%emt 0:00:12]} 50. Rf6 {[%emt 0:00:39]} Kg7 $1 {[%emt 0:00:05]} 51. Rf7+ {[%emt 0:00:01]} Kg8 {[%emt 0:00:04]} 52. Rc7 $2 {[%emt 0:01:41]} (52. Bh5 $18 {has better winning chances.}) 52... Bxe6 $16 {[%emt 0:00:07]} 53. Bxe6+ {[%emt 0:00:19]} ({White should try} 53. Bh5 $1 $14 Rd8 54. Kf2 (54. Rxc6 Rd2+ 55. Kh1 Bh3 $11)) 53... Rxe6 {[%emt 0:00:04] KR-KR} 54. Kf2 {[%emt 0:00:08]} h6 {[%emt 0:00:27]} 55. Ke3 {[%emt 0:00:16] aiming for h5.} Kf8 {[%emt 0:00:05]} (55... h5 $11 {remains equal.}) 56. Rh7 {[%emt 0:01:03]} (56. Rd7 $16) 56... Kg8 $14 {[%emt 0:00:08]} 57. Rd7 {[%emt 0:00:36]} Re5 $1 {[%emt 0:01:01]} 58. Rd6 {[%emt 0:00:45]} (58. g4 $5 {[%cal Rd7d6]}) 58... Rxc5 {[%emt 0:00:07]} 59. Rxh6 {[%emt 0:00:15][%cal Oh4h5] [#] Threatens to win with h5!} Rc2 $1 {[%emt 0:00:35]} 60. Kxe4 {[%emt 0:00:23] And now h5 would win.} Rxb2 {[%emt 0:00:06]} 61. Rxc6 {[%emt 0:00:04]} Rb3 {[%emt 0:00:06][%csl LRa3,LRg3]} 62. g4 {[%emt 0:01:13]} Rxa3 {[%emt 0:00:06]} 63. Kf5 {[%emt 0:00:24]} Rf3+ {[%emt 0:00:33]} 64. Kg6 {[%emt 0:00:29]} a3 {[%emt 0:00:26]} 65. h5 {[%emt 0:00:16][%cal Bh4h5,Bh5h6,Bh6h7][%mdl 32] Strongly threatening h6.} b4 {[%emt 0:00:39]} 66. Ra6 {[%emt 0:00:16]} (66. h6 $5 Rf8 $8 67. Rc7 $11 (67. Ra6 Kh8 $11)) 66... Rf8 {[%emt 0:00:41] ...Rb8 would be deadly.} 67. h6 {[%emt 0:01:11] Threatening mate with h7+.} Rb8 $2 {[%emt 0:00:05][%mdl 8192]} (67... Kh8 $11 68. g5 Rg8+ 69. Kh5 b3 70. Rxa3 Rb8) 68. g5 {[%emt 0:00:35] White mates.} b3 {[%emt 0:00:27] [#]} 69. h7+ $1 {[%emt 0:00:01]} (69. Rxa3 {is a self mate.} b2 70. h7+ Kh8 71. Kf6 b1=Q 72. g6 Rb6+ 73. Kg5 Rb5+ 74. Kf6 Qf5+ 75. Ke7 Rb7+ 76. Kd6 Rd7+ 77. Kc6 Qd5+ 78. Kb6 Rb7+ 79. Ka6 Qb5#) 69... Kh8 {[%emt 0:00:09]} 70. Kh6 $1 {[%emt 0:00:02] Weighted Error Value: White=0.69/Black=0.44} 1-0

[Event "Lliga Catalana DH 2023"]
[Site "Catalonia"]
[Date "2023.02.04"]
[Round "3.7"]
[White "Perez Manas, Benjamin"]
[Black "Garcia Jimenez, Francisco Javier"]
[Result "1-0"]
[ECO "C42"]
[WhiteElo "2192"]
[BlackElo "2230"]
[Annotator "TA"]
[PlyCount "121"]
[EventDate "2023.01.24"]
[EventType "team-tourn"]
[EventCountry "ESP"]
[SourceTitle "playchess.com"]
[Source "ChessBase"]
[SourceQuality "1"]
[TimeControl "40/5400+30:1800+30"]

{[%evp 12,121,55,60,66,56,45,45,53,51,55,28,19,2,22,13,30,27,29,24,20,14,18,12,8,5,14,7,26,29,29,29,29,24,29,27,39,38,44,50,49,42,43,42,47,35,43,38,47,38,39,5,30,0,0,0,3,0,0,0,7,8,8,7,7,0,9,0,0,0,45,24,130,120,163,175,171,173,142,138,240,232,320,316,293,271,556,524,642,583,1210,1266,855,600,752,844,711,683,5097,3941,2179,1625,29945,10218,29979,29980,29986,0,6729,6056,29988,29989]} 1. e4 e5 2. Nf3 Nf6 3. Nxe5 Nxe4 4. Qe2 Qe7 5. Qxe4 d6 6. d4 dxe5 7. dxe5 Nc6 {C42: Petroff Defence: 3 Nxe5 and unusual White 3rd moves.} 8. Nc3 {Black must now prevent Nd5.} Qxe5 9. Qxe5+ Nxe5 {White is slightly better.} 10. Nb5 Bb4+ 11. c3 Ba5 {[#]} 12. Be3 $146 (12. Bf4 $5 {[%cal Rf4e5]} f6 13. O-O-O $11) ({Predecessor:} 12. Bf4 f6 13. O-O-O O-O 14. Bxe5 fxe5 15. Bc4+ Kh8 16. Rhe1 a6 17. Na3 Bb6 18. f3 {1-0 Kovchan,A (2574)-Gadimbayli,A (2463) Novi Sad TS Mix 240th 2022 (6)}) 12... a6 13. Na3 O-O 14. Nc4 Nxc4 15. Bxc4 c6 {Black is weak on the dark squares} 16. O-O Bf5 17. Bc5 Rfe8 18. Rfe1 Rad8 19. h3 Be6 20. Bxe6 Rxe6 21. Rxe6 fxe6 $11 {[%mdl 4096] Endgame KRB-KRB} 22. Be3 Bc7 23. Kf1 Rd5 24. c4 Ra5 25. a4 {[#] Threatens to win with c5.} Rf5 26. Rd1 Rf7 27. Ke2 Kf8 28. Bc5+ Ke8 29. Rd3 Rf5 30. Bd4 g6 31. g4 Rf7 (31... Rf4 $5 {[%cal Re6e5]}) 32. Ke3 e5 33. Bc5 e4 34. Rd4 Rf3+ 35. Ke2 Rxh3 36. Rxe4+ Kd8 37. Be3 Kd7 38. c5 Bd8 39. Rb4 Kc8 40. Rf4 Be7 {Dodges Rf8+} 41. Kf1 {Rf7 would be deadly.} (41. Rf7 $5 {[%cal Rf7e7]} Kd8 42. Rg7 $14) 41... Rh1+ (41... Rh4 $1 $11 {keeps the balance.}) 42. Kg2 $16 Rb1 43. Rf7 {[%csl LRe7,LRh7]} Kd8 44. Rxh7 Rxb2 {[#]} 45. Rg7 $1 Rb4 (45... Ke8 $16 {was worth a try.}) 46. Rxg6 $18 Rxa4 47. f4 Ra3 48. Kf2 a5 $2 (48... Rc3 49. Rg7 Ke8) 49. f5 Bh4+ 50. Ke2 a4 51. g5 Ra2+ 52. Kd3 Bf2 {...Ra3+ is the strong threat.} 53. Rg8+ Kd7 54. Rg7+ Ke8 55. Bxf2 ({Inferior is} 55. Rxb7 Ra3+ 56. Ke2 Bxe3 $11) 55... Rxf2 {KR-KR} 56. Ke4 {And now Ke5 would win.} ({Not} 56. Rxb7 Rxf5 57. g6 Kf8 $11) 56... Rb2 57. f6 {[%cal Bf5f6,Bf6f7][%mdl 32] g6 would kill now.} a3 58. g6 a2 59. Rg8+ (59. Re7+ $142 Kd8 60. g7 Re2+ 61. Kf3 Rxe7 62. g8=Q+ Re8 63. f7 {[%mdl 64] Pin} Rxg8 64. fxg8=Q+ Kd7 65. Qxa2) 59... Kd7 60. Ra8 {Intending g7 and mate.} Rg2 61. f7 {Weighted Error Value: White=0.26 (precise) /Black=0.62} 1-0

[Event "Lliga Catalana DH 2023"]
[Site "Catalonia"]
[Date "2023.02.04"]
[Round "3.8"]
[White "Vehi Bach, Victor Manuel"]
[Black "Obon Temprano, Sergi"]
[Result "1/2-1/2"]
[ECO "C48"]
[WhiteElo "2242"]
[BlackElo "2193"]
[Annotator "TA"]
[PlyCount "85"]
[EventDate "2023.01.24"]
[EventType "team-tourn"]
[EventCountry "ESP"]
[SourceTitle "playchess.com"]
[Source "ChessBase"]
[SourceQuality "1"]
[TimeControl "40/5400+30:1800+30"]

{[%evp 9,85,19,20,18,30,22,42,41,52,33,114,91,155,74,88,77,54,6,79,83,71,76,76,76,226,140,146,144,161,-33,-37,-31,-34,-36,-32,0,68,57,158,134,128,64,180,155,172,175,175,94,83,81,124,31,31,31,31,31,31,31,45,33,69,69,77,8,23,15,43,26,77,77,111,110,146,137,211,0,108,0]} 1. e4 e5 2. Nf3 Nc6 3. Nc3 Nf6 4. Bb5 {[%cal Bf1b5,Bb5a4,Ba4b3][%mdl 32]} Bd6 5. d3 a6 6. Ba4 {C48: Four Knights: 4 Bb5, replies other than 4...Bb4.} h6 7. a3 O-O {[#]} (7... Bc5 {looks sharper.} 8. Bxc6 dxc6 9. Nxe5 Qd4) 8. g4 $1 {[%cal Bg2g4,Bg4g5][%mdl 32] White is slightly better.} Nh7 {[#]} (8... Be7 9. Bxc6) 9. g5 $146 ({Predecessor:} 9. h4 Nd4 10. Nxd4 exd4 11. Ne2 c5 12. Bb3 Be7 13. g5 hxg5 14. hxg5 Bxg5 15. Ng3 Bxc1 16. Rxc1 {0-1 Shvayger,Y (2393)-Zhao,X (2485) Wch Rapid (Women) 2018 (11)}) 9... h5 ({Black should try} 9... hxg5 $14 10. Rg1 b5 11. Nxg5 (11. Bb3 Nd4 $14) 11... Nf6) 10. Bb3 $16 {g6 would be deadly.} g6 11. Be3 {Prevents Bc5} (11. Nh4 $142 $1 {[%cal Rh4g6]} Kh8 12. Bxf7 {[%mdl 64] Remove Defender} Rxf7 13. Nxg6+ Kg8 14. Qxh5) 11... Be7 12. Nd5 d6 13. Qd2 (13. h4 $14) 13... Be6 (13... Bg4 $11 14. Nxe7+ Qxe7) 14. Rg1 Re8 15. Nh4 Bf8 16. O-O-O Nb8 (16... Bg7 $16 {is a better defense.}) 17. f4 exf4 18. Bd4 {White has more active pieces.} ({Resist} 18. Bxf4 $6 Nd7 $14) (18. Nxf4 $6 Bxb3 19. cxb3 Nd7 $14) 18... Nc6 19. Nf6+ $2 (19. Bf6 $18 Qd7 20. Qxf4) 19... Nxf6 $15 20. Bxf6 Qd7 21. Bxe6 Qxe6 22. Qxf4 Bg7 ({Black should play} 22... d5 $11) 23. Rdf1 Nd4 (23... b5 $14) 24. Qe3 c5 25. c3 (25. Qf2 $16) 25... Rac8 26. Kb1 $1 $18 (26. cxd4 $2 {too greedy.} cxd4+ 27. Kb1 dxe3 $19) 26... Nb5 27. c4 $1 Nd4 {[#]} 28. Bxg7 (28. Ng2 $1 $18) 28... Kxg7 $16 29. Rf6 Qe5 30. Nf3 {Chess con chili.} (30. Qf2 $16 Rf8 31. Rf1) 30... Nxf3 $14 31. Qxf3 Re7 32. Rf1 {[%cal Rf6f7]} Rcc7 $1 {[%cal Bc8c7,Bc7d7,Bd7d4][%mdl 32]} 33. Qf4 Rcd7 34. Qxe5 dxe5 {[%mdl 4096] Endgame KRR-KRR} 35. Kc2 Rd4 36. Kc3 (36. b4 $16) 36... Red7 37. R1f3 R4d6 38. b4 cxb4+ (38... b6 $1 $11 {keeps the balance.}) 39. axb4 $16 {Black must now prevent Rxd6.} Rd4 40. h4 Kg8 41. Rb6 Kg7 {[#]} (41... Re7 $16 42. b5 axb5) 42. Rbf6 (42. b5 $1 $18) 42... Kg8 43. Rb6 {Weighted Error Value: White=0.31/Black=0.29 (precise)} ({Better is} 43. Rg3 $16) 1/2-1/2